bitfinex/quotes_BTCUSD_20250803
["timestamp","ask_amount","ask_price","bid_price","bid_amount"]
[1754250392311,0.340587,114640.0,114620.0,0.32974284]
[1754250392537,0.571007,114640.0,114630.0,0.10977092]
[1754250392745,1.01353676,114640.0,114630.0,0.19840376]
[1754250392955,1.06353676,114640.0,114630.0,0.19622284]
[1754250393172,1.06353676,114640.0,114630.0,0.19122284]
[1754250393386,1.17522676,114640.0,114630.0,0.19122284]
[1754250394865,1.12522676,114640.0,114630.0,0.19122284]
[1754250395093,1.17522676,114640.0,114630.0,0.19122284]
[1754250395303,0.571007,114640.0,114630.0,0.19122284]
[1754250395504,1.01353676,114640.0,114630.0,0.19122284]
[1754250395937,1.17522676,114640.0,114630.0,0.18322284]
[1754250396106,1.17522676,114640.0,114630.0,0.08863284]
[1754250396107,0.94769482,114640.0,114630.0,0.08863284]
[1754250396301,0.94769482,114640.0,114630.0,0.09081376]
[1754250396502,0.94769482,114640.0,114630.0,0.09181376]
[1754250397398,0.94769482,114640.0,114630.0,0.09281376]
[1754250397840,0.89769482,114640.0,114630.0,0.09281376]
[1754250398056,0.94769482,114640.0,114630.0,0.20040376]
[1754250398251,0.94769482,114640.0,114630.0,0.19822284]
[1754250398596,0.94769482,114640.0,114630.0,0.09063284]
[1754250399036,0.89769482,114640.0,114630.0,0.09063284]
[1754250399241,0.94769482,114640.0,114630.0,0.22415284]
[1754250399813,0.94769482,114640.0,114630.0,0.22315284]
[1754250400158,0.94769482,114640.0,114630.0,0.22215284]
[1754250400367,0.94969482,114640.0,114630.0,0.21715284]
[1754250401275,0.95069482,114640.0,114630.0,0.21715284]
[1754250402916,0.95069482,114640.0,114630.0,0.20915284]
[1754250404641,0.90069482,114640.0,114630.0,0.20915284]
[1754250405088,0.95069482,114640.0,114630.0,0.20915284]
[1754250407554,0.95069482,114640.0,114630.0,0.20415284]
[1754250409142,0.90069482,114640.0,114630.0,0.20415284]
[1754250409342,0.95069482,114640.0,114630.0,0.20415284]
[1754250410133,0.95069482,114640.0,114630.0,0.19615284]
[1754250410355,0.50816506,114640.0,114630.0,0.19615284]
[1754250410640,0.95069482,114640.0,114630.0,0.19615284]
[1754250412327,0.90069482,114640.0,114630.0,0.19615284]
[1754250412558,0.94969482,114640.0,114630.0,0.19615284]
[1754250412971,0.94769482,114640.0,114630.0,0.19615284]
[1754250413940,0.00047506,114640.0,114630.0,0.19615284]
[1754250414155,0.00047506,114640.0,114630.0,0.30765284]
[1754250414362,0.44300482,114640.0,114630.0,0.30765284]
[1754250414566,0.44300482,114640.0,114630.0,0.30265284]
[1754250415263,0.44300482,114640.0,114630.0,0.30365284]
[1754250415883,0.44300482,114640.0,114630.0,0.30465284]
[1754250417013,0.00047506,114640.0,114630.0,0.32210186]
[1754250417225,0.00047506,114640.0,114630.0,0.31410186]
[1754250418413,0.00047506,114640.0,114630.0,0.75663162]
[1754250419042,0.00047506,114640.0,114630.0,0.31410186]
[1754250421584,0.00047506,114640.0,114630.0,0.30910186]
[1754250423828,0.00047506,114640.0,114630.0,0.34528779]
[1754250424283,0.00047506,114640.0,114630.0,0.33728779]
[1754250425182,0.00047506,114640.0,114630.0,0.33528779]
[1754250425405,0.00047506,114640.0,114630.0,0.36451179]
[1754250425624,0.00047506,114640.0,114630.0,0.36751179]
[1754250428893,0.00047506,114640.0,114630.0,0.36251179]
[1754250430341,0.00047506,114640.0,114630.0,0.80504155]
[1754250432387,0.00047506,114640.0,114630.0,0.79704155]
[1754250435692,0.00047506,114640.0,114630.0,0.79204155]
[1754250435877,0.11587506,114640.0,114630.0,0.10449179]
[1754250436076,0.11587506,114640.0,114630.0,0.23797179]
[1754250437347,0.6291168,114640.0,114630.0,0.08704277]
[1754250437543,0.6291168,114640.0,114630.0,0.19429877]
[1754250437805,0.6291168,114640.0,114630.0,0.21174779]
[1754250438226,0.6291168,114640.0,114630.0,0.20874779]
[1754250438444,0.6291168,114640.0,114630.0,0.20574779]
[1754250438653,0.6291168,114640.0,114630.0,0.05481877]
[1754250438856,0.6291168,114640.0,114630.0,0.18829877]
[1754250439031,0.6291168,114640.0,114630.0,0.18929877]
[1754250439462,1.0191168,114640.0,114630.0,0.14511284]
[1754250439808,1.0201168,114640.0,114630.0,0.14511284]
[1754250440433,1.0201168,114640.0,114630.0,0.14411284]
[1754250442194,0.94940482,114640.0,114630.0,0.14411284]
[1754250442831,0.50687506,114640.0,114630.0,0.13911284]
[1754250443261,0.94940482,114640.0,114630.0,0.13911284]
[1754250443685,0.94940482,114640.0,114630.0,0.00563284]
[1754250443900,0.94940482,114640.0,114630.0,0.13911284]
[1754250446518,0.94940482,114640.0,114630.0,0.21974568]
[1754250447742,0.50687506,114640.0,114630.0,0.21974568]
[1754250448370,0.50687506,114640.0,114610.0,0.02992298]
[1754250448585,0.11324,114630.0,114620.0,0.22211284]
[1754250448801,0.1154,114630.0,114620.0,0.22211284]
[1754250449049,0.30578338,114640.0,114620.0,0.22211284]
[1754250449285,0.00216,114630.0,114620.0,0.22211284]
[1754250450024,0.00216,114630.0,114620.0,0.21711284]
[1754250451111,0.1154,114630.0,114620.0,0.21811284]
[1754250452366,0.1154,114630.0,114620.0,0.08463284]
[1754250452577,0.1154,114630.0,114620.0,0.21811284]
[1754250453052,0.11424431,114630.0,114620.0,0.21811284]
[1754250453256,0.00216,114630.0,114620.0,0.21811284]
[1754250453468,0.00216,114630.0,114620.0,0.001]
[1754250453644,0.00216,114630.0,114620.0,0.12648]
[1754250453855,0.00216,114630.0,114620.0,0.13348]
[1754250454060,0.44468976,114630.0,114620.0,0.13348]
[1754250454471,0.44568976,114630.0,114620.0,0.13348]
[1754250454996,0.44768976,114630.0,114620.0,0.13348]
[1754250455213,0.52498976,114630.0,114620.0,0.13348]
[1754250456995,0.52498976,114630.0,114620.0,0.12848]
[1754250457917,0.44768976,114630.0,114620.0,0.22872]
[1754250458632,0.44768976,114630.0,114620.0,0.23083]
[1754250458811,0.44768976,114630.0,114620.0,0.23384]
[1754250459031,0.44552976,114630.0,114620.0,0.32247284]
[1754250459263,0.003,114630.0,114620.0,0.32247284]
[1754250460093,0.002,114630.0,114620.0,0.32247284]
[1754250460796,0.10334,114650.0,114620.0,0.31447284]
[1754250461011,0.44252976,114640.0,114620.0,0.31447284]
[1754250461248,0.44252976,114640.0,114630.0,0.10549]
[1754250461463,0.44366976,114640.0,114630.0,0.10549]
[1754250462115,4.749e-05,114650.0,114630.0,0.19829376]
[1754250462368,0.001,114640.0,114630.0,0.19611284]
[1754250462623,0.44257725,114650.0,114630.0,0.22410284]
[1754250463073,0.44257725,114650.0,114640.0,0.10549]
[1754250463300,0.44357725,114650.0,114640.0,0.10549]
[1754250463528,0.44357725,114650.0,114640.0,0.10748]
[1754250463941,0.44558725,114650.0,114640.0,0.10748]
[1754250464170,0.44458725,114650.0,114640.0,0.10248]
[1754250464414,0.44458725,114650.0,114640.0,0.10148]
[1754250464638,0.44257725,114650.0,114640.0,0.10148]
[1754250464919,0.44257725,114650.0,114640.0,0.19011284]
[1754250465100,0.44357725,114650.0,114640.0,0.19011284]
[1754250466498,0.44349364,114650.0,114640.0,0.19011284]
[1754250467698,0.44349364,114650.0,114640.0,0.18211284]
[1754250468760,0.88719364,114650.0,114640.0,0.18211284]
[1754250469177,0.4447,114650.0,114640.0,0.18211284]
[1754250469394,0.88722976,114650.0,114640.0,0.18211284]
[1754250471797,0.4447,114650.0,114640.0,0.18211284]
[1754250472035,0.88722976,114650.0,114640.0,0.18211284]
[1754250472250,0.88722976,114650.0,114640.0,0.17711284]
[1754250472676,0.4447,114650.0,114640.0,0.17711284]
[1754250472880,0.88722976,114650.0,114640.0,0.17711284]
[1754250474914,0.88722976,114650.0,114640.0,0.16911284]
[1754250477120,0.4447,114650.0,114640.0,0.17129357]
[1754250477274,0.88722976,114650.0,114640.0,0.17129357]
[1754250477945,0.4447,114650.0,114640.0,0.17129357]
[1754250478428,0.88722976,114650.0,114640.0,0.17129357]
[1754250478849,0.88923976,114650.0,114640.0,0.16415284]
[1754250479011,0.99526976,114650.0,114640.0,0.08863284]
[1754250479557,0.99526976,114650.0,114640.0,0.08363284]
[1754250480083,0.99526976,114650.0,114640.0,0.21707284]
[1754250481485,0.54965,114650.0,114640.0,0.21707284]
[1754250481734,0.99217976,114650.0,114640.0,0.21707284]
[1754250481965,0.99217976,114650.0,114640.0,0.13344]
[1754250482418,0.99526976,114650.0,114640.0,0.13344]
[1754250486693,0.99526976,114650.0,114640.0,0.12844]
[1754250486932,0.99217976,114650.0,114640.0,0.12844]
[1754250488282,0.99217976,114650.0,114630.0,0.10549]
[1754250488501,0.55274,114650.0,114640.0,0.13344]
[1754250488889,0.55274,114650.0,114630.0,0.19115284]
[1754250489108,0.55174,114650.0,114640.0,0.13344]
[1754250489763,0.99426976,114650.0,114640.0,0.13344]
[1754250493196,0.78085825,114650.0,114640.0,0.13344]
[1754250493814,0.78085825,114650.0,114640.0,0.12844]
[1754250496220,0.78085825,114650.0,114640.0,0.12044]
[1754250497898,0.77776825,114650.0,114640.0,0.22798]
[1754250498138,0.67482825,114650.0,114640.0,0.22798]
[1754250498378,0.67482825,114650.0,114640.0,0.23313]
[1754250500538,0.67482825,114650.0,114640.0,0.22798]
[1754250500752,0.67482825,114650.0,114640.0,0.22298]
[1754250500953,0.77447825,114650.0,114640.0,0.22298]
[1754250501168,0.77447825,114650.0,114640.0,0.11544]
[1754250501584,0.77447825,114650.0,114640.0,0.22298]
[1754250502256,0.67482825,114650.0,114640.0,0.22298]
[1754250503304,0.67482825,114650.0,114640.0,0.21498]
[1754250505169,0.23229849,114650.0,114640.0,0.21498]
[1754250505412,0.67482825,114650.0,114640.0,0.21698]
[1754250505644,0.67482825,114650.0,114640.0,0.22013]
[1754250507954,0.67482825,114650.0,114640.0,0.21513]
[1754250508757,0.67281825,114650.0,114640.0,0.21513]
[1754250509160,0.23028849,114650.0,114640.0,0.30376284]
[1754250510442,0.67281825,114650.0,114640.0,0.30376284]
[1754250510673,0.67281825,114650.0,114640.0,0.29576284]
[1754250512839,0.23028849,114650.0,114640.0,0.29576284]
[1754250513588,0.67281825,114650.0,114640.0,0.29576284]
[1754250515000,0.67281825,114650.0,114640.0,0.29076284]
[1754250517654,0.67281825,114650.0,114640.0,0.28276284]
[1754250518510,0.44252976,114660.0,114640.0,0.28276284]
[1754250518727,0.44252976,114670.0,114650.0,0.09081338]
[1754250518916,0.44252976,114670.0,114660.0,0.13855]
[1754250519268,0.23659546,114670.0,114660.0,0.24609]
[1754250519577,0.44252976,114670.0,114660.0,0.33472284]
[1754250519981,0.44452976,114670.0,114660.0,0.36012923]
[1754250520239,0.44252976,114670.0,114660.0,0.36012923]
[1754250520457,0.44352976,114670.0,114660.0,0.36012923]
[1754250520879,0.44352976,114670.0,114660.0,0.29884931]
[1754250521646,0.001,114670.0,114660.0,0.29884931]
[1754250521854,0.001,114670.0,114660.0,0.31629833]
[1754250522086,0.001,114670.0,114660.0,0.31129833]
[1754250522786,4.759e-05,114680.0,114660.0,0.31129833]
[1754250523012,4.759e-05,114680.0,114670.0,0.10826202]
[1754250523240,4.759e-05,114680.0,114670.0,0.21462202]
[1754250523454,4.759e-05,114680.0,114670.0,0.23834997]
[1754250524250,0.00104759,114680.0,114670.0,0.23834997]
[1754250524677,0.00104759,114680.0,114670.0,0.23034997]
[1754250524895,0.00104759,114680.0,114670.0,0.22090095]
[1754250525538,4.759e-05,114680.0,114670.0,0.22090095]
[1754250525757,4.759e-05,114680.0,114670.0,0.22190095]
[1754250526513,4.759e-05,114680.0,114670.0,0.22290095]
[1754250529219,4.759e-05,114680.0,114670.0,0.21790095]
[1754250531898,4.759e-05,114680.0,114670.0,0.20990095]
[1754250533108,0.44462735,114680.0,114670.0,0.20692095]
[1754250533334,0.44462735,114680.0,114670.0,0.20496095]
[1754250534616,0.00209759,114680.0,114670.0,0.20496095]
[1754250534826,0.44462735,114680.0,114670.0,0.20496095]
[1754250534970,0.44462735,114680.0,114670.0,0.20692095]
[1754250535202,0.44462735,114680.0,114670.0,0.20990095]
[1754250536898,0.44462735,114680.0,114670.0,0.20490095]
[1754250538821,0.44462735,114680.0,114670.0,0.19690095]
[1754250542571,0.00209759,114680.0,114670.0,0.19690095]
[1754250542811,0.44462735,114680.0,114670.0,0.19690095]
[1754250543349,0.54457735,114680.0,114670.0,0.09054095]
[1754250543553,0.54759735,114680.0,114670.0,0.09054095]
[1754250543761,0.54759735,114680.0,114670.0,0.16122811]
[1754250543959,0.54759735,114680.0,114670.0,0.15622811]
[1754250544613,0.54759735,114680.0,114670.0,0.15522811]
[1754250545063,0.54759735,114680.0,114670.0,0.15422811]
[1754250545458,0.54859735,114680.0,114670.0,0.15422811]
[1754250545702,0.10606759,114680.0,114670.0,0.13332]
[1754250545868,0.54859735,114680.0,114670.0,0.12532]
[1754250546790,0.54859735,114680.0,114670.0,0.15175492]
[1754250548978,0.54859735,114680.0,114670.0,0.02643492]
[1754250549190,0.80388584,114680.0,114670.0,0.13332]
[1754250551065,0.80388584,114680.0,114670.0,0.12832]
[1754250553879,0.80388584,114680.0,114670.0,0.12032]
[1754250556653,0.025,114670.0,114650.0,0.10454]
[1754250556872,0.54167976,114660.0,114640.0,0.31227]
[1754250557166,0.44252976,114650.0,114640.0,0.40090284]
[1754250557379,0.44252976,114650.0,114640.0,0.53626284]
[1754250557720,0.12203,114660.0,114640.0,0.44763]
[1754250557929,0.44252976,114650.0,114640.0,0.31635]
[1754250558124,0.44461976,114650.0,114640.0,0.43947]
[1754250558375,0.44461976,114650.0,114640.0,0.43747]
[1754250558718,0.56740167,114650.0,114640.0,0.44143]
[1754250558919,0.54164976,114650.0,114640.0,0.43743]
[1754250559125,0.44461976,114650.0,114640.0,0.43743]
[1754250559551,0.44461976,114650.0,114640.0,0.30415]
[1754250559758,0.56664976,114650.0,114640.0,0.13328]
[1754250559957,0.56986976,114650.0,114640.0,0.13328]
[1754250560379,0.90986976,114650.0,114640.0,0.13428]
[1754250560794,0.90986976,114650.0,114640.0,0.12528]
[1754250561003,0.91086976,114650.0,114640.0,0.12528]
[1754250561429,0.90986976,114650.0,114640.0,0.12528]
[1754250561634,0.93484853,114650.0,114640.0,0.12528]
[1754250561838,0.025,114640.0,114620.0,0.10263]
[1754250562045,0.025,114640.0,114620.0,0.19126284]
[1754250562046,0.44252976,114630.0,114620.0,0.19126284]
[1754250562247,0.46962976,114630.0,114620.0,0.10471]
[1754250562458,0.46962976,114630.0,114620.0,0.23491]
[1754250562874,0.46962976,114630.0,114620.0,0.23283]
[1754250563072,0.46962976,114630.0,114620.0,0.23330506]
[1754250563812,0.46962976,114630.0,114620.0,0.23430506]
[1754250564007,0.46962976,114630.0,114620.0,0.23530506]
[1754250565118,0.46962976,114630.0,114620.0,0.23030506]
[1754250565896,0.0271,114630.0,114620.0,0.23030506]
[1754250566297,0.46962976,114630.0,114620.0,0.23030506]
[1754250566974,0.46962976,114630.0,114620.0,0.23342506]
[1754250567185,0.46962976,114630.0,114620.0,0.23550506]
[1754250567880,0.46962976,114630.0,114620.0,0.22750506]
[1754250572330,0.46962976,114630.0,114620.0,0.22250506]
[1754250574038,0.62503619,114630.0,114620.0,0.22250506]
[1754250575030,0.62503619,114630.0,114620.0,0.21450506]
[1754250579453,0.62503619,114630.0,114620.0,0.20950506]
[1754250583048,0.62503619,114630.0,114620.0,0.20150506]
[1754250584272,0.63115857,114630.0,114620.0,0.20150506]
[1754250586283,0.63115857,114630.0,114620.0,0.19650506]
[1754250587511,0.63116662,114630.0,114620.0,0.19650506]
[1754250590089,0.63116662,114630.0,114620.0,0.18850506]
[1754250590290,0.03323043,114630.0,114620.0,0.18850506]
[1754250590458,0.63116662,114630.0,114620.0,0.18850506]
[1754250590859,0.63116662,114630.0,114620.0,0.13579506]
[1754250591079,0.72982662,114630.0,114620.0,0.13579506]
[1754250591830,0.72982662,114630.0,114620.0,0.13479506]
[1754250592063,0.72982662,114630.0,114620.0,0.13379506]
[1754250592262,0.72982662,114630.0,114620.0,0.23442506]
[1754250593813,0.72982662,114630.0,114620.0,0.22942506]
[1754250594430,0.51038717,114630.0,114620.0,0.23147506]
[1754250594627,0.51236717,114630.0,114620.0,0.23462506]
[1754250596853,1.44601006,114630.0,114620.0,0.23462506]
[1754250597281,1.44601006,114630.0,114620.0,0.22662506]
[1754250597694,1.34735006,114630.0,114620.0,0.22662506]
[1754250597915,0.67466503,114630.0,114620.0,0.22662506]
[1754250599060,0.67268503,114630.0,114620.0,0.22662506]
[1754250600919,0.67268503,114630.0,114620.0,0.22162506]
[1754250601574,0.46830284,114630.0,114620.0,0.22162506]
[1754250602591,0.27144563,114630.0,114620.0,0.22162506]
[1754250604024,0.67268503,114630.0,114620.0,0.22162506]
[1754250604469,0.67268503,114630.0,114620.0,0.21362506]
[1754250605622,0.67466503,114630.0,114620.0,0.21362506]
[1754250605835,0.77332503,114630.0,114620.0,0.21157506]
[1754250606631,0.55234766,114630.0,114620.0,0.21157506]
[1754250607668,0.55234766,114630.0,114620.0,0.21362506]
[1754250607812,0.55234766,114630.0,114620.0,0.20862506]
[1754250608013,0.45368766,114630.0,114620.0,0.20862506]
[1754250608850,0.67466503,114630.0,114620.0,0.20862506]
[1754250610051,0.77332503,114630.0,114620.0,0.20862506]
[1754250610918,0.77332503,114630.0,114620.0,0.00047506]
[1754250611119,0.10064,114630.0,114620.0,0.13371506]
[1754250611489,0.77332503,114630.0,114620.0,0.13371506]
[1754250611717,0.77332503,114630.0,114620.0,0.23506506]
[1754250612439,0.77332503,114630.0,114620.0,0.22706506]
[1754250613508,0.77332503,114630.0,114620.0,0.12888506]
[1754250613841,0.77332503,114630.0,114620.0,0.22706506]
[1754250615166,0.77332503,114630.0,114620.0,0.12388506]
[1754250615305,0.77332503,114630.0,114620.0,0.22206506]
[1754250615506,0.10064,114630.0,114620.0,0.22206506]
[1754250615803,0.10064,114630.0,114620.0,0.22419506]
[1754250619402,0.10064,114630.0,114620.0,0.21619506]
[1754250620274,0.00198,114630.0,114620.0,0.21619506]
[1754250620495,0.25156667,114640.0,114620.0,0.21619506]
[1754250620707,1.01288454,114640.0,114620.0,0.21619506]
[1754250620922,0.99922787,114640.0,114620.0,0.21619506]
[1754250621896,0.32654284,114640.0,114620.0,0.21619506]
[1754250622116,0.86590787,114640.0,114620.0,0.21119506]
[1754250622500,0.86690787,114640.0,114620.0,0.21119506]
[1754250623139,0.86790787,114640.0,114620.0,0.21119506]
[1754250626674,0.86790787,114640.0,114620.0,0.20319506]
[1754250629159,0.86790787,114640.0,114620.0,0.19819506]
[1754250632189,0.86790787,114640.0,114620.0,0.23668]
[1754250633660,0.00216,114630.0,114620.0,0.22868]
[1754250635709,0.00216,114630.0,114620.0,0.23185]
[1754250635908,0.77943503,114630.0,114620.0,0.23185]
[1754250636370,0.77943503,114630.0,114620.0,0.22368]
[1754250636778,0.77943503,114630.0,114620.0,0.22155]
[1754250638679,0.67484503,114630.0,114620.0,0.22685]
[1754250639541,0.00216,114630.0,114620.0,0.22685]
[1754250640759,0.77943503,114630.0,114620.0,0.21568]
[1754250643456,0.77943503,114630.0,114620.0,0.21068]
[1754250645451,0.77943503,114630.0,114620.0,0.20855]
[1754250645683,0.77943503,114630.0,114620.0,0.07535]
[1754250645904,0.77943503,114630.0,114620.0,0.13316]
[1754250646381,0.78261503,114630.0,114620.0,0.13316]
[1754250646862,1.45530006,114630.0,114610.0,0.13143059]
[1754250647111,1.01268503,114620.0,114610.0,0.13316]
[1754250647340,1.65061787,114620.0,114610.0,0.13316]
[1754250647822,1.65061787,114620.0,114610.0,0.12516]
[1754250648060,1.65061787,114620.0,114600.0,0.13316]
[1754250648293,0.77306503,114610.0,114600.0,0.13316]
[1754250648520,0.77510503,114610.0,114600.0,0.13316]
[1754250648786,0.56320152,114610.0,114600.0,0.13316]
[1754250649001,0.56320152,114610.0,114600.0,0.2359]
[1754250650870,0.56320152,114610.0,114600.0,0.2309]
[1754250651105,0.56320152,114610.0,114600.0,0.2319]
[1754250651307,0.56320152,114610.0,114600.0,0.2329]
[1754250652165,0.10242,114610.0,114600.0,0.2329]
[1754250652431,0.10242,114610.0,114600.0,0.2379]
[1754250654191,0.77510503,114610.0,114600.0,0.2379]
[1754250654460,0.77510503,114610.0,114600.0,0.13516]
[1754250654712,0.77510503,114610.0,114600.0,0.2379]
[1754250654890,0.77510503,114610.0,114600.0,0.2299]
[1754250655112,0.10242,114610.0,114600.0,0.2299]
[1754250655769,0.10242,114610.0,114600.0,0.23204]
[1754250657954,0.77510503,114610.0,114600.0,0.23204]
[1754250658185,0.4437,114600.0,114590.0,0.13178928]
[1754250658415,0.4437,114600.0,114590.0,0.26708928]
[1754250658656,0.4437,114600.0,114590.0,0.26208928]
[1754250659153,0.22794618,114600.0,114590.0,0.12892928]
[1754250659414,1.00623121,114600.0,114590.0,0.13516]
[1754250660909,1.00623121,114600.0,114590.0,0.13616]
[1754250661276,1.00623121,114600.0,114590.0,0.002]
[1754250661493,1.00623121,114600.0,114590.0,0.13316]
[1754250661727,1.00823121,114600.0,114590.0,0.13316]
[1754250661939,1.02822868,114600.0,114580.0,0.1599281]
[1754250662153,1.02822868,114600.0,114550.0,0.026243]
[1754250662154,0.86487787,114590.0,114550.0,0.026243]
[1754250662366,3.423994,114580.0,114560.0,0.77542503]
[1754250662580,0.00318,114580.0,114570.0,0.10274]
[1754250662816,0.1056,114580.0,114570.0,0.10274]
[1754250663406,0.10607562,114580.0,114570.0,0.10274]
[1754250663634,0.77876065,114580.0,114570.0,0.10274]
[1754250664448,0.78076065,114580.0,114570.0,0.10274]
[1754250664784,0.78276065,114580.0,114570.0,0.10274]
[1754250665138,0.78076065,114580.0,114570.0,0.10274]
[1754250665730,0.78176065,114580.0,114570.0,0.09774]
[1754250665919,0.78176065,114580.0,114570.0,0.09988]
[1754250666382,0.00347562,114580.0,114570.0,0.77566503]
[1754250666619,0.00347562,114580.0,114570.0,0.10298]
[1754250667282,0.00147562,114580.0,114570.0,0.10298]
[1754250667736,0.00247562,114580.0,114570.0,0.10298]
[1754250667974,0.00147562,114580.0,114570.0,0.10298]
[1754250668389,0.00247562,114580.0,114570.0,0.10298]
[1754250668983,0.00247562,114580.0,114570.0,0.09498]
[1754250669859,0.00247562,114580.0,114570.0,0.76766503]
[1754250670494,0.00247562,114580.0,114570.0,0.09498]
[1754250671453,0.00247562,114580.0,114570.0,0.09188]
[1754250671657,0.68028065,114580.0,114570.0,0.09188]
[1754250671864,3.423994,114570.0,114540.0,0.026246]
[1754250672106,1.34748006,114550.0,114520.0,0.10577]
[1754250672338,0.80584503,114540.0,114520.0,0.10577]
[1754250672550,0.81096503,114540.0,114530.0,0.00203]
[1754250672764,0.81096503,114540.0,114520.0,0.23305]
[1754250672765,0.90870503,114540.0,114520.0,0.23305]
[1754250673002,0.42863284,114550.0,114530.0,0.67766503]
[1754250673003,0.4732,114550.0,114530.0,0.67766503]
[1754250673228,0.34,114550.0,114530.0,0.81086503]
[1754250673436,0.67268503,114540.0,114530.0,0.13523]
[1754250673644,1.44870539,114540.0,114530.0,0.1332]
[1754250673844,1.44870539,114540.0,114510.0,0.00315]
[1754250674065,0.67268503,114520.0,114510.0,0.13348]
[1754250674328,0.67268503,114520.0,114510.0,0.13551]
[1754250674329,0.67479503,114520.0,114510.0,0.13551]
[1754250674568,0.67780503,114520.0,114510.0,0.13551]
[1754250674802,0.7019264,114520.0,114510.0,0.2361]
[1754250675011,0.6041864,114520.0,114510.0,0.23813]
[1754250675442,0.00512,114520.0,114510.0,0.23813]
[1754250675864,1.0398164,114530.0,114510.0,0.23813]
[1754250676080,0.01514466,114540.0,114520.0,0.09757]
[1754250676286,0.48742466,114540.0,114530.0,0.00203]
[1754250676522,0.00047533,114540.0,114530.0,0.00203]
[1754250676744,0.00047533,114540.0,114530.0,0.13535]
[1754250678194,0.00047533,114540.0,114530.0,0.23797]
[1754250678412,0.00047533,114540.0,114530.0,0.24092]
[1754250678604,0.00047533,114540.0,114530.0,0.32955284]
[1754250679235,0.00047533,114540.0,114530.0,0.99933122]
[1754250679448,0.00147533,114540.0,114530.0,1.01678024]
[1754250679868,0.00147533,114540.0,114530.0,1.18843697]
[1754250680088,0.00047533,114540.0,114530.0,1.21468397]
[1754250680628,0.00047533,114540.0,114530.0,1.21568397]
[1754250680805,0.00047533,114540.0,114530.0,1.55568397]
[1754250680937,0.00047533,114540.0,114530.0,1.55468397]
[1754250681375,0.00047533,114540.0,114530.0,1.38005724]
[1754250681790,0.00047533,114540.0,114530.0,1.30850682]
[1754250682609,0.00047533,114540.0,114530.0,1.31150682]
[1754250683277,0.00047533,114540.0,114530.0,1.30350682]
[1754250683695,0.00047533,114540.0,114530.0,1.30750682]
[1754250685106,0.00047533,114540.0,114530.0,1.47813355]
[1754250685309,0.00047533,114540.0,114530.0,1.49263355]
[1754250685512,0.00047533,114540.0,114530.0,1.31800682]
[1754250686294,0.00047533,114540.0,114530.0,1.51763355]
[1754250686886,0.00047533,114540.0,114530.0,1.51263355]
[1754250687706,0.00047533,114540.0,114530.0,1.33800682]
[1754250690165,0.00047533,114540.0,114530.0,1.33000682]
[1754250690374,0.00047533,114540.0,114530.0,1.30500682]
[1754250690568,0.00047533,114540.0,114530.0,1.33000682]
[1754250690792,0.00047533,114540.0,114530.0,0.73094042]
[1754250690996,0.00047533,114540.0,114530.0,1.33000682]
[1754250692215,0.00047533,114540.0,114530.0,1.50463355]
[1754250693053,0.00047533,114540.0,114530.0,1.67963355]
[1754250693288,0.00301,114580.0,114570.0,0.5990664]
[1754250693465,0.00512,114580.0,114570.0,0.82120189]
[1754250693837,0.10286,114580.0,114570.0,0.91882189]
[1754250694856,0.10286,114580.0,114570.0,0.34194321]
[1754250694970,0.10286,114580.0,114570.0,0.94100961]
[1754250695826,0.10386,114580.0,114570.0,0.94100961]
[1754250696444,0.10286,114580.0,114570.0,0.94100961]
[1754250697348,0.10286,114580.0,114570.0,0.93400961]
[1754250698200,0.00301,114580.0,114570.0,0.9618403]
[1754250698664,0.00512,114580.0,114570.0,0.9618403]
[1754250698884,0.10286,114580.0,114570.0,0.9598103]
[1754250700649,0.10286,114580.0,114570.0,0.2581239]
[1754250701049,0.10286,114580.0,114570.0,0.2531239]
[1754250702124,0.10286,114580.0,114570.0,0.23593618]
[1754250703949,0.10091324,114580.0,114570.0,0.23593618]
[1754250704593,0.10091324,114580.0,114570.0,0.16030334]
[1754250705855,0.69997964,114580.0,114570.0,0.16014334]
[1754250706539,0.10091324,114580.0,114570.0,0.16014334]
[1754250708036,0.10091324,114580.0,114570.0,0.15514334]
[1754250708223,0.69997964,114580.0,114570.0,0.1332]
[1754250710083,0.70097964,114580.0,114570.0,0.1332]
[1754250710502,0.70097964,114580.0,114560.0,0.13316]
[1754250710745,0.7353364,114580.0,114560.0,0.13328426]
[1754250710923,0.09979,114570.0,114560.0,0.13328426]
[1754250711123,0.10191,114570.0,114560.0,0.13328426]
[1754250711543,0.10191,114570.0,114560.0,0.12528426]
[1754250712614,0.10191,114570.0,114560.0,0.13328426]
[1754250713232,0.11557443,114570.0,114560.0,0.13328426]
[1754250714017,0.10191,114570.0,114560.0,0.00012426]
[1754250714866,0.44827264,114580.0,114560.0,0.00012426]
[1754250715066,0.6011864,114570.0,114560.0,0.00012426]
[1754250715304,0.6011864,114570.0,114550.0,0.23068426]
[1754250715305,0.00212,114570.0,114550.0,0.23068426]
[1754250715452,0.00212,114570.0,114550.0,0.23073175]
[1754250716975,0.10016,114570.0,114550.0,0.10344749]
[1754250717171,0.10016,114570.0,114550.0,0.23664749]
[1754250717870,0.10016,114570.0,114550.0,0.10344749]
[1754250718039,0.00236,114560.0,114550.0,0.00104749]
[1754250718253,0.10016,114560.0,114550.0,0.00104749]
[1754250718519,0.10016,114560.0,114540.0,0.23172749]
[1754250718729,0.10016,114560.0,114540.0,0.22188023]
[1754250718911,0.00448,114560.0,114540.0,0.22188023]
[1754250719567,0.00312,114560.0,114550.0,0.00214]
[1754250719783,0.22794618,114570.0,114550.0,0.68983924]
[1754250719997,0.22794618,114570.0,114560.0,0.5990664]
[1754250720209,0.22794618,114570.0,114560.0,0.7324064]
[1754250720661,0.22794618,114570.0,114560.0,0.8378864]
[1754250721515,0.01366391,114580.0,114560.0,0.8378864]
[1754250721516,0.01366391,114580.0,114560.0,0.92651924]
[1754250721726,0.026246,114590.0,114570.0,0.79536131]
[1754250721942,0.026246,114590.0,114580.0,0.7344064]
[1754250722172,0.01366289,114600.0,114580.0,0.81703924]
[1754250722385,0.01366289,114600.0,114590.0,0.1024]
[1754250722596,0.01366289,114600.0,114590.0,0.10454]
[1754250722812,0.01366289,114600.0,114590.0,0.10762]
[1754250723256,0.01366289,114600.0,114590.0,0.13444988]
[1754250723925,0.01578289,114600.0,114590.0,0.13136988]
[1754250725251,0.01883289,114600.0,114590.0,0.13136988]
[1754250725673,0.01883289,114600.0,114590.0,0.12122988]
[1754250725869,0.11557289,114600.0,114590.0,0.02682988]
[1754250729056,0.11557289,114600.0,114590.0,0.12922988]
[1754250729267,0.11557289,114600.0,114590.0,0.12422988]
[1754250730451,0.71463929,114600.0,114580.0,0.2286]
[1754250730655,0.71476381,114600.0,114580.0,0.2286]
[1754250730879,0.00312,114590.0,114580.0,0.2286]